fUSD/lending_fUSD_20240624
["ID","MTS","AMOUNT","RATE_DAILY","PERIOD"]
[330224656,1719191441558,-217.84498894,0.00018839,2]
[330224657,1719191441567,-2189.883854,0.0001884,2]
[330224658,1719191441576,-2100.0,0.00018849,2]
[330224659,1719191441585,-169.53251828,0.00018849,2]
[330224660,1719191441595,-779.0,0.0001885,2]
[330224661,1719191441604,-215.0,0.000189,2]
[330224662,1719191441613,-7500.0,0.000189,2]
[330224663,1719191441622,-2709.07481677,0.000189,2]
[330224664,1719191441631,-151.0,0.00018904,2]
[330224665,1719191441640,-5774.07747752,0.00018956,2]
[330224666,1719191441648,-500.0,0.00018961,2]
[330224667,1719191441658,-500.0,0.00018961,2]
[330224668,1719191441667,-500.0,0.00018961,2]
[330224669,1719191441676,-500.0,0.00018961,2]
[330224670,1719191441685,-500.0,0.00018961,2]
[330224671,1719191441694,-500.0,0.00018961,2]
[330224672,1719191441703,-500.0,0.00018961,2]
[330224673,1719191441712,-500.0,0.00018961,2]
[330224674,1719191441721,-500.0,0.00018961,2]
[330224675,1719191441730,-500.0,0.00018961,2]
[330224676,1719191441740,-500.0,0.00018961,2]
[330224677,1719191441749,-500.0,0.00018961,2]
[330224678,1719191441758,-500.0,0.00018961,2]
[330224679,1719191441768,-500.0,0.00018961,2]
[330224680,1719191441777,-500.0,0.00018961,2]
[330224681,1719191442001,-500.0,0.00018961,2]
[330224682,1719191442010,-500.0,0.00018961,2]
[330224683,1719191442021,-500.0,0.00018961,2]
[330224684,1719191442030,-500.0,0.00018961,2]
[330224685,1719191442039,-500.0,0.00018961,2]
[330224686,1719191442049,-500.0,0.00018961,2]
[330224687,1719191442058,-500.0,0.00018961,2]
[330224688,1719191442067,-500.0,0.00018961,2]
[330224689,1719191442076,-500.0,0.00018961,2]
[330224690,1719191442086,-500.0,0.00018961,2]
[330224691,1719191442095,-500.0,0.00018961,2]
[330224692,1719191442106,-500.0,0.00018961,2]
[330224693,1719191442117,-500.0,0.00018961,2]
[330224694,1719191442127,-500.0,0.00018961,2]
[330224695,1719191442136,-500.0,0.00018961,2]
[330224696,1719191442147,-500.0,0.00018961,2]
[330224697,1719191442156,-500.0,0.00018961,2]
[330224698,1719191442165,-500.0,0.00018961,2]
[330224699,1719191442174,-500.0,0.00018961,2]
[330224700,1719191442184,-500.0,0.00018961,2]
[330224701,1719191442194,-500.0,0.00018961,2]
[330224702,1719191442203,-500.0,0.00018961,2]
[330224703,1719191442213,-500.0,0.00018961,2]
[330224704,1719191442222,-500.0,0.00018961,2]
[330224705,1719191442231,-500.0,0.00018961,2]
[330224706,1719191442240,-500.0,0.00018961,2]
[330224707,1719191442251,-500.0,0.00018961,2]
[330224708,1719191442260,-500.0,0.00018961,2]
[330224709,1719191442272,-500.0,0.00018961,2]
[330224710,1719191442282,-500.0,0.00018961,2]
[330224711,1719191442292,-500.0,0.00018961,2]
[330224712,1719191442301,-500.0,0.00018961,2]
[330224713,1719191442310,-500.0,0.00018961,2]
[330224714,1719191442320,-500.0,0.00018961,2]
[330224715,1719191442330,-500.0,0.00018961,2]
[330224716,1719191442339,-274.74,0.00018961,2]
[330224717,1719191442348,-500.0,0.00018961,2]
[330224718,1719191442358,-500.0,0.00018961,2]
[330224719,1719191442367,-500.0,0.00018961,2]
[330224720,1719191442376,-500.0,0.00018961,2]
[330224721,1719191442385,-500.0,0.00018961,2]
[330224722,1719191442395,-500.0,0.00018961,2]
[330224723,1719191442404,-500.0,0.00018961,2]
[330224724,1719191442414,-500.0,0.00018961,2]
[330224725,1719191442424,-500.0,0.00018961,2]
[330224726,1719191442434,-500.0,0.00018961,2]
[330224727,1719191442443,-500.0,0.00018961,2]
[330224728,1719191442453,-500.0,0.00018961,2]
[330224729,1719191442462,-500.0,0.00018961,2]
[330224730,1719191442471,-500.0,0.00018961,2]
[330224731,1719191442481,-500.0,0.00018961,2]
[330224732,1719191442490,-500.0,0.00018961,2]
[330224733,1719191442499,-500.0,0.00018961,2]
[330224734,1719191442508,-500.0,0.00018961,2]
[330224735,1719191442519,-500.0,0.00018961,2]
[330224736,1719191442527,-500.0,0.00018961,2]
[330224737,1719191442537,-500.0,0.00018961,2]
[330224738,1719191442546,-500.0,0.00018961,2]
[330224739,1719191442556,-500.0,0.00018961,2]
[330224740,1719191442565,-500.0,0.00018961,2]
[330224741,1719191442574,-500.0,0.00018961,2]
[330224742,1719191442584,-500.0,0.00018961,2]
[330224743,1719191442593,-513.6,0.00018961,2]
[330224744,1719191442602,-500.0,0.00018961,2]
[330224745,1719191442611,-500.0,0.00018961,2]
[330224746,1719191442620,-723.4636064,0.00018987,2]
[330224747,1719191442629,-596.7033449,0.00018987,2]
[330224748,1719191442639,-469.9430833,0.00018987,2]
[330224749,1719191442649,-151.338867,0.00018987,2]
[330224750,1719191442658,-151.338867,0.00018987,2]
[330224751,1719191442667,-151.338867,0.00018987,2]
[330224752,1719191442676,-47442.36930431,0.00019,2]
[330224753,1719191442686,-6161.85306445,0.00019,3]
[330224754,1719191442696,-422196.31975477,0.00019,2]
[330224755,1719191442709,-588.209208,0.00019,2]
[330224756,1719191442721,-1127.62637815,0.00019,2]
[330224757,1719191442732,-1967.44872296,0.00019,2]
[330224758,1719191442756,-513.778761,0.00019,2]
[330224759,1719191442768,-486.02294797,0.00019,2]
[330224760,1719191442779,-18281.87110618,0.00019,2]
[330224825,1719191443639,-929.23217278,0.00018675,2]
[330224826,1719191443794,-333.84870785,0.00018675,2]
[330224827,1719191443804,-831.0590105,0.00018785,2]
[330224828,1719191443813,-155.0,0.00018819,2]
[330224829,1719191443823,-8163.48768524,0.00019,2]
[330224848,1719191447071,-264.29329375,0.00018809,2]
[330224849,1719191447080,-430.00470625,0.00019,2]
[330224850,1719191447221,-1262.45386925,0.00019,2]
[330224851,1719191447232,-41955.77686023,0.00019,2]
[330224852,1719191447242,-113106.53254044,0.00019,2]
[330224853,1719191447253,-888.27296113,0.00019,2]
[330224854,1719191447265,-4200.6,0.00019,2]
[330224855,1719191447282,-39619.34750543,0.00019,2]
[330224856,1719191447315,-4026.05319123,0.00019,2]
[330224857,1719191447381,-296.26673161,0.00019,2]
[330224858,1719191447394,-7350.49439153,0.00019,2]
[330224859,1719191447406,-18687.90820847,0.00019,2]
[330224860,1719191447417,-26977.16239601,0.00019,2]
[330224861,1719191447430,-5315.47316038,0.00019,2]
[330224862,1719191447441,-1190.62731025,0.00019,2]
[330224863,1719191447605,-23.84921287,0.00019,2]
[330224864,1719191447615,-2329.54058302,0.00019,2]
[330224865,1719191447627,-484.08101232,0.00019,2]
[330224873,1719191519170,457.55,0.00018849,30]
[330224972,1719192057409,419.42,0.00018849,30]
[330224973,1719192097114,152.76,0.00025709,120]
[330224991,1719192633935,-328.86034069,0.00012502,2]
[330224992,1719192633945,-59.13965927,0.00012602,2]
[330224994,1719192633956,-440.86034073,0.00012602,2]
[330224995,1719192633965,-310.07120232,0.00012602,2]
[330224996,1719192633976,-189.92879768,0.00012602,2]
[330224997,1719192633985,-166.712,0.00013657,2]
[330224998,1719192633995,-8790.95244014,0.00013922,2]
[330224999,1719192634011,-15895.39719052,0.00013922,2]
[330225000,1719192634021,-150.0,0.00013975,2]
[330225001,1719192634030,-300.0,0.00013975,2]
[330225002,1719192634039,-217.70661505,0.00014246,2]
[330225003,1719192634048,-222.01289552,0.00014246,2]
[330225004,1719192634057,-491.56025274,0.00014968,2]
[330225005,1719192634066,-684.0,0.00015,2]
[330225006,1719192634075,-409.54,0.00015188,2]
[330225007,1719192634084,-420.0,0.00015311,2]
[330225008,1719192634093,-210.0,0.00015373,2]
[330225009,1719192634102,-1240.5405,0.00015579,2]
[330225010,1719192634111,-150.19,0.00015674,2]
[330225011,1719192634120,-7600.96,0.00015678,2]
[330225012,1719192634129,-499.99,0.00015678,2]
[330225013,1719192634138,-7433.35,0.00015689,2]
[330225014,1719192634147,-587.0,0.00016774,2]
[330225015,1719192634156,-1071.09,0.00016818,2]
[330225016,1719192634165,-200.0,0.00016822,2]
[330225017,1719192634175,-250.0,0.00016826,2]
[330225018,1719192634184,-201.0,0.0001691,2]
[330225019,1719192634383,-200.0,0.00016914,2]
[330225020,1719192634417,-400.0,0.00016964,2]
[330225021,1719192634427,-250.0,0.00016992,2]
[330225022,1719192634437,-1206.63,0.00016993,2]
[330225023,1719192634447,-1424.5,0.00017023,2]
[330225024,1719192634456,-4109.06,0.00017031,2]
[330225025,1719192634465,-152.76,0.00017139,2]
[330225026,1719192634475,-600.0,0.00017159,2]
[330225027,1719192634484,-409.54,0.00017452,2]
[330225028,1719192634493,-158.25040673,0.00017807,2]
[330225029,1719192634508,-215.0,0.000179,2]
[330225030,1719192634517,-168.71,0.00017904,2]
[330225031,1719192634531,-327.239615,0.00018,2]
[330225032,1719192634541,-823.0,0.00018378,2]
[330225034,1719192634550,-5593.62205483,0.00018599,2]
[330225036,1719192634559,-1180.32843783,0.0001862,2]
[330225038,1719192634571,-398.2557,0.0001872,2]
[330225039,1719192634580,-2168.86976971,0.0001872,2]
[330225040,1719192634589,-39055.17805673,0.0001874,2]
[330225041,1719192634598,-700.0,0.0001877,2]
[330225042,1719192634609,-800.0,0.0001877,2]
[330225043,1719192634620,-500.0,0.0001877,2]
[330225044,1719192634629,-2688.39276045,0.0001879,2]
[330225045,1719192634638,-314.92,0.000188,2]
[330225046,1719192634647,-2000.0,0.000188,2]
[330225047,1719192634657,-1003.22,0.000188,2]
[330225048,1719192634666,-2000.0,0.0001881,2]
[330225049,1719192634676,-218.18,0.0001881,3]
[330225050,1719192634685,-654.54,0.0001881,3]
[330225051,1719192634694,-196.17673017,0.00018819,2]
[330225052,1719192634704,-42874.61084489,0.0001882,2]
[330225053,1719192634713,-2000.0,0.0001882,2]
[330225054,1719192634722,-2000.0,0.0001883,2]
[330225055,1719192634732,-2189.883854,0.0001884,2]
[330225056,1719192634741,-1000.0,0.00018848,2]
[330225057,1719192634756,-1000.0,0.00018848,2]
[330225058,1719192634765,-1004.02769106,0.00018848,2]
[330225059,1719192634775,-8997.0597,0.000189,2]
[330225060,1719192634784,-13344.5523,0.000189,2]
[330225061,1719192634793,-173.26790298,0.000189,2]
[330225062,1719192634803,-179.38098978,0.000189,2]
[330225063,1719192634812,-2500.0,0.000189,2]
[330225064,1719192634822,-380.82843278,0.000189,2]
[330225065,1719192634831,-700.0,0.0001897,2]
[330225066,1719192634840,-400.0,0.0001897,2]
[330225067,1719192634849,-260.21570865,0.0001899,2]
[330225068,1719192634858,-797.1291889,0.00018991,2]
[330225069,1719192634867,-302.6777342,0.00018991,2]
[330225070,1719192634877,-150.0,0.00018999,2]
[330225071,1719192634887,-698.0,0.00019,2]
[330225072,1719192634896,-34919.82931783,0.00019,2]
[330225073,1719192634909,-801.36554768,0.00019,2]
[330225074,1719192635134,-10338.91143297,0.00019,2]
[330225075,1719192635145,-16234.94453886,0.00019,2]
[330225076,1719192635157,-1798.17271157,0.00019,2]
[330225080,1719192639602,-158.27105518,0.00017661,2]
[330225081,1719192639613,-227.4332601,0.00018819,2]
[330225082,1719192639628,-5151.78924689,0.00018819,2]
[330225083,1719192639638,-60202.31919762,0.00019,2]
[330225084,1719192640182,-1182.84175117,0.0001862,2]
[330225086,1719192640193,-21073.57154547,0.00019,2]
[330225089,1719192640206,-701.89106013,0.00019,2]
[330225093,1719192641452,-503.61695748,0.00019,2]
[330225095,1719192641463,-6279.27023831,0.00019,2]
[330225097,1719192641475,-775.77409809,0.00019,2]
[330225099,1719192641486,-1176.7429157,0.00019,2]
[330225114,1719192644651,-153.98,0.00018814,2]
[330225116,1719192644660,-4339.99643743,0.00019,2]
[330225118,1719192644673,-685.39500002,0.00019,2]
[330225120,1719192644684,-621.1775589,0.00019,2]
[330225122,1719192644695,-409.45999997,0.00019,2]
[330225124,1719192644707,-13857.20132762,0.00019,2]
[330225126,1719192644720,-9613.92971346,0.00019,2]
[330225128,1719192644731,-7849.97467302,0.00019,2]
[330225172,1719192645242,-3107.12544579,0.00019,2]
[330225179,1719192645254,-1022.04087,0.00019,2]
[330225185,1719192645267,-537.74436485,0.00019,2]
[330225188,1719192645279,-1264.91726722,0.00019,2]
[330225191,1719192645291,-910.0,0.00019,2]
[330225194,1719192645302,-10454.55,0.00019,2]
[330225197,1719192645315,-32546.41815225,0.00019,2]
[330225199,1719192645327,-6733.25683672,0.00019,2]
[330225200,1719192645338,-4608.4,0.00019,2]
[330225202,1719192645350,-1851.12984424,0.00019,2]
[330225204,1719192645361,-501.77587846,0.00019,2]
[330225207,1719192645372,-526.35733836,0.00019,2]
[330225212,1719192645810,-776.01999628,0.00019,2]
[330225215,1719192645823,-892.99999995,0.00019,2]
[330225225,1719192647383,-631.0,0.00019,2]
[330225226,1719192647393,-9.0,0.00019,2]
[330225227,1719192648403,-270.462826,0.00019,2]
[330225228,1719192648415,-1748.9835148,0.00019,2]
[330225229,1719192648426,-2085.163727,0.00019,2]
[330225232,1719192732442,173.37,0.00024889,120]
[330225235,1719192867600,384.46,0.00018849,30]
[330225237,1719192920334,5100.0,0.0002,33]
[330225239,1719193423854,352.42,0.00018849,30]
[330225241,1719193596172,-156.04702275,0.00011959,2]
[330225260,1719193832997,-163.35,0.00011372,2]
[330225261,1719193833006,-11.93297725,0.00011959,2]
[330225262,1719193833018,-1365.75745251,0.00011959,2]
[330225263,1719193833028,-249.76636301,0.00012,2]
[330225264,1719193833040,-231.85520846,0.00012,2]
[330225265,1719193833049,-450.05,0.00012284,2]
[330225266,1719193833059,-755.81193683,0.0001251,2]
[330225267,1719193833069,-62.28285471,0.00013899,2]
[330225268,1719193833082,-87.71714529,0.00013899,2]
[330225269,1719193833091,-300.0,0.00013899,2]
[330225270,1719193833101,-280.3046,0.000139,2]
[330225271,1719193833110,-35.72866903,0.000139,2]
[330225272,1719193833121,-190.62715562,0.000139,2]
[330225273,1719193833130,-175.42864382,0.000139,2]
[330225274,1719193833140,-22.83170193,0.000139,2]
[330225275,1719193833152,-332.95574765,0.000139,2]
[330225276,1719193833161,-667.04425235,0.000139,2]
[330225277,1719193833172,-501.08,0.000139,2]
[330225278,1719193833184,-3701.63522741,0.000139,2]
[330225279,1719193833193,-226.74750375,0.000139,2]
[330225280,1719193833202,-243.28601449,0.00013957,2]
[330225281,1719193833211,-499.99,0.0001399,2]
[330225282,1719193833221,-440.15,0.0001399,3]
[330225283,1719193833233,-7532.16486011,0.00014,2]
[330225284,1719193833243,-510.3000105,0.00014,2]
[330225285,1719193833254,-726.48604474,0.00014,2]
[330225291,1719193837998,-3622.80406312,0.000139,2]
[330225294,1719193838010,-1420.08578158,0.00014,2]
[330225295,1719193838023,-902.15263318,0.00014,2]
[330225296,1719193838036,-633.25,0.00014,2]
[330225297,1719193838049,-12266.21967178,0.00014,2]
[330225299,1719193838061,-284.51111494,0.00014,2]
[330225300,1719193838073,-6185.98287592,0.00014,2]
[330225301,1719193838084,-845.57482597,0.00014,2]
[330225302,1719193838096,-22560.57905045,0.00014,2]
[330225303,1719193838108,-4572.78453988,0.00014,2]
[330225304,1719193838123,-10816.66281497,0.00014,2]
[330225305,1719193838135,-871.8601839,0.00014,2]
[330225306,1719193838146,-10859.41738551,0.00014,2]
[330225307,1719193838159,-3385.96953395,0.00014,2]
[330225308,1719193838171,-228820.52295478,0.00014,2]
[330225309,1719193838183,-633.84,0.00014,2]
[330225310,1719193838194,-2629.68143665,0.00014,2]
[330225311,1719193838638,-55931.82318381,0.00014,2]
[330225312,1719193838649,-257.82237684,0.00014,2]
[330225313,1719193838661,-999.02111103,0.00014,2]
[330225314,1719193838673,-2693.31503572,0.00014,2]
[330225315,1719193838685,-271686.95935817,0.00014,2]
[330225316,1719193838696,-1598.0370128,0.00014,2]
[330225317,1719193838707,-4605.93063705,0.00014,2]
[330225318,1719193838719,-10391.0,0.00014,2]
[330225319,1719193838733,-4621.52324931,0.00014,2]
[330225320,1719193838744,-844.20419722,0.00014,2]
[330225321,1719193838755,-795.2682055,0.00014,2]
[330225322,1719193838767,-1007.38297438,0.00014,2]
[330225323,1719193840079,-6442.17012194,0.00014,2]
[330225324,1719193840091,-1460.32639976,0.00014,2]
[330225325,1719193840103,-577.29297945,0.00014,2]
[330225327,1719193840747,-292.07714136,0.000139,2]
[330225328,1719193840757,-501.77211617,0.00014,2]
[330225329,1719193840768,-500.0,0.00014,2]
[330225330,1719193840779,-24067.32736272,0.00014,2]
[330225331,1719193840791,-3528399.97149228,0.00014,2]
[330225332,1719193840800,-939.94,0.00014,2]
[330225333,1719193840809,-200.0,0.00014284,2]
[330225334,1719193840818,-459.757,0.00014357,2]
[330225335,1719193840827,-1838.322,0.00014357,2]
[330225336,1719193840837,-1278.129,0.00014357,2]
[330225337,1719193840846,-1661.517,0.00014357,2]
[330225338,1719193840856,-444.172,0.00014357,2]
[330225339,1719193840866,-626.255,0.00014357,2]
[330225340,1719193840876,-453.935,0.00014357,2]
[330225341,1719193840886,-192.987,0.00014357,2]
[330225342,1719193840895,-777.733,0.00014357,2]
[330225343,1719193840905,-1309.324,0.00014357,2]
[330225344,1719193840915,-159.79,0.00014357,2]
[330225345,1719193840925,-2422.055,0.00014357,2]
[330225346,1719193840936,-1992.394,0.00014357,2]
[330225347,1719193840950,-549.29,0.00014357,2]
[330225348,1719193840960,-3213.317,0.00014357,2]
[330225349,1719193840971,-327.79,0.00014357,2]
[330225350,1719193840983,-1203.928,0.00014357,2]
[330225351,1719193840992,-38152.0,0.00014357,2]
[330225352,1719193841001,-5190.143,0.00014357,2]
[330225353,1719193841010,-5824.229,0.00014357,2]
[330225354,1719193841023,-1668.935,0.00014357,2]
[330225355,1719193841032,-1072.64,0.00014357,2]
[330225356,1719193841042,-1000.0,0.00014403,2]
[330225357,1719193841051,-355.78744949,0.00014466,2]
[330225358,1719193841061,-207.97361882,0.00014496,2]
[330225359,1719193841070,-938.90022968,0.00014496,2]
[330225360,1719193841079,-2633.92,0.00014499,2]
[330225361,1719193841088,-1327.79,0.00014536,2]
[330225362,1719193841098,-450.05,0.00014548,2]
[330225363,1719193841107,-250.0,0.00014649,2]
[330225364,1719193841117,-4869.75947971,0.0001478,2]
[330225365,1719193841127,-4913.94,0.00014884,2]
[330225366,1719193841136,-2100.0,0.00014933,2]
[330225367,1719193841146,-5770.0,0.00015,2]
[330225368,1719193841155,-21451.6973498,0.00015,2]
[330225369,1719193841165,-169.64,0.00015005,2]
[330225370,1719193841174,-355.78744949,0.00015031,2]
[330225371,1719193841184,-250.0,0.00015082,2]
[330225372,1719193841195,-420.0,0.00015229,2]
[330225373,1719193841204,-355.78744949,0.00015597,2]
[330225374,1719193841214,-4869.75947971,0.00015659,2]
[330225375,1719193841223,-355.78744949,0.00016162,2]
[330225376,1719193841234,-1000.0,0.00016203,2]
[330225377,1719193841243,-1134.44,0.00016286,2]
[330225378,1719193841252,-4869.75947971,0.00016539,2]
[330225379,1719193841261,-150.97,0.00016613,2]
[330225380,1719193841270,-150.39,0.00016616,2]
[330225381,1719193841280,-152.28,0.00016621,2]
[330225382,1719193841290,-587.0,0.00016686,2]
[330225383,1719193841299,-355.78744949,0.00016728,2]
[330225384,1719193841308,-450.05,0.00016812,2]
[330225385,1719193841318,-169.64,0.00016881,2]
[330225386,1719193841327,-1134.44,0.000171,2]
[330225387,1719193841336,-2633.92,0.00017239,2]
[330225388,1719193841345,-355.78744949,0.00017293,2]
[330225389,1719193841355,-4869.75947971,0.00017419,2]
[330225390,1719193841364,-559.0,0.000178,2]
[330225391,1719193841373,-355.78744949,0.00017859,2]
[330225392,1719193841383,-3622.80406311,0.00017859,2]
[330225393,1719193841392,-1134.44,0.00017915,2]
[330225394,1719193841401,-150.0,0.00017985,2]
[330225395,1719193841411,-1000.0,0.00018004,2]
[330225396,1719193841420,-173.37,0.00018101,2]
[330225397,1719193841430,-11751.0,0.000182,3]
[330225398,1719193841439,-823.0,0.00018282,2]
[330225399,1719193841449,-39211.69201075,0.00018298,2]
[330225400,1719193841458,-4869.75947971,0.00018298,2]
[330225401,1719193841467,-355.78744949,0.00018424,2]
[330225402,1719193841479,-619.0,0.00018525,2]
[330225403,1719193841488,-150.0,0.00018548,2]
[330225404,1719193841497,-10567.63396934,0.00018552,2]
[330225405,1719193841506,-807.80388797,0.0001862,2]
[330225406,1719193841515,-25248.94357444,0.00018671,2]
[330225407,1719193841524,-11751.0,0.000187,5]
[330225408,1719193841534,-1007.0,0.000187,2]
[330225409,1719193841543,-1134.44,0.00018729,2]
[330225410,1719193841552,-851.0554,0.0001873,2]
[330225411,1719193841562,-169.64,0.00018756,2]
[330225412,1719193841572,-311.66,0.000188,2]
[330225413,1719193841581,-2000.0,0.000188,2]
[330225414,1719193841590,-1001.06,0.000188,2]
[330225415,1719193841600,-2000.0,0.0001881,2]
[330225416,1719193841610,-1248.45976,0.0001881,2]
[330225417,1719193841620,-2650.931246,0.0001882,2]
[330225418,1719193841630,-1000.0,0.00018848,2]
[330225419,1719193841639,-226.15781259,0.00018849,2]
[330225420,1719193841648,-169.55934429,0.00018849,2]
[330225421,1719193841658,-215.0,0.000189,2]
[330225422,1719193841668,-13687.0318008,0.000189,2]
[330225423,1719193841677,-19760.74519139,0.000189,2]
[330225424,1719193841687,-887.46498925,0.00018944,2]
[330225425,1719193841697,-355.78744949,0.0001899,2]
[330225426,1719193841707,-560.3565271,0.00018991,2]
[330225427,1719193841716,-531.8862516,0.00018991,2]
[330225428,1719193841728,-150.01,0.00018999,2]
[330225429,1719193841737,-521331.20175244,0.00019,2]
[330225430,1719193841747,-1800.0,0.00019,20]
[330225431,1719193841756,-155.0,0.00019,2]
[330225432,1719193841765,-444.0,0.00019,2]
[330225433,1719193841774,-197.65526593,0.00019,2]
[330225434,1719193841783,-102417.83042251,0.00019,2]
[330225435,1719193841793,-227801.07940524,0.00019,2]
[330225436,1719193841803,-1000.0,0.00019,3]
[330225437,1719193841812,-590.0,0.00019,3]
[330225438,1719193841821,-417493.591747,0.00019,2]
[330225439,1719193841830,-174546.51645071,0.00019,2]
[330225440,1719193841839,-4316.05987295,0.00019,2]
[330225441,1719193841849,-174058.27731379,0.00019,2]
[330225442,1719193841858,-490.0,0.00019,2]
[330225443,1719193841868,-490.0,0.00019,2]
[330225444,1719193841877,-774.72515143,0.00019,2]
[330225445,1719193841887,-225.0,0.00019,2]
[330225446,1719193841896,-355.0,0.00019,2]
[330225447,1719193841906,-164.98,0.00019004,2]
[330225448,1719193841915,-500.0,0.0001903,2]
[330225449,1719193841925,-450.05,0.00019076,2]
[330225450,1719193841941,-1000.0,0.000191,2]
[330225451,1719193841950,-500.0,0.00019109,2]
[330225452,1719193841960,-500.0,0.00019178,2]
[330225453,1719193841971,-500.0,0.00019178,2]
[330225454,1719193841982,-209.2635091,0.00019178,2]
[330225455,1719193841992,-500.0,0.00019178,2]
[330225456,1719193842002,-500.0,0.00019178,2]
[330225457,1719193842012,-500.0,0.00019178,2]
[330225458,1719193842021,-240.36415691,0.00019178,2]
[330225459,1719193842030,-350.0,0.00019178,2]
[330225460,1719193842040,-500.0,0.00019178,2]
[330225461,1719193842049,-480.0,0.00019178,2]
[330225462,1719193842059,-269.35737406,0.00019178,2]
[330225463,1719193842068,-500.0,0.00019178,2]
[330225464,1719193842078,-500.0,0.00019178,2]
[330225465,1719193842087,-500.0,0.00019178,2]
[330225466,1719193842098,-500.0,0.00019178,2]
[330225467,1719193842107,-500.0,0.00019178,2]
[330225468,1719193842116,-327.66259129,0.00019178,2]
[330225469,1719193842126,-500.0,0.00019178,2]
[330225470,1719193842136,-500.0,0.00019178,2]
[330225471,1719193842381,-500.0,0.00019178,2]
[330225472,1719193842391,-500.0,0.00019178,2]
[330225473,1719193842400,-500.0,0.00019178,2]
[330225474,1719193842410,-500.0,0.00019178,2]
[330225475,1719193842419,-500.0,0.00019178,2]
[330225476,1719193842428,-500.0,0.00019178,2]
[330225477,1719193842437,-500.0,0.00019178,2]
[330225478,1719193842447,-427.13612913,0.00019178,2]
[330225479,1719193842456,-39211.69201075,0.00019178,2]
[330225480,1719193842465,-151.0,0.00019178,2]
[330225481,1719193842474,-4869.75947971,0.00019178,2]
[330225482,1719193842485,-250.0,0.00019178,2]
[330225483,1719193842494,-302.72173357,0.00019178,2]
[330225484,1719193842504,-300.0,0.00019178,2]
[330225485,1719193842513,-300.0,0.00019178,2]
[330225486,1719193842523,-305.35451085,0.00019178,2]
[330225487,1719193842533,-1715.46,0.0001918,2]
[330225488,1719193842543,-1715.46,0.0001918,2]
[330225489,1719193842552,-1715.46,0.0001918,2]
[330225490,1719193842561,-1715.46,0.0001918,2]
[330225491,1719193842571,-1715.46,0.0001918,2]
[330225492,1719193842581,-1715.46,0.0001918,2]
[330225493,1719193842590,-1715.46,0.0001918,2]
[330225494,1719193842599,-1715.46,0.0001918,2]
[330225495,1719193842609,-1715.46,0.0001918,2]
[330225496,1719193842619,-1715.46,0.0001918,2]
[330225497,1719193842628,-150.0,0.00019234,2]
[330225498,1719193842638,-13687.03180071,0.0001925,2]
[330225499,1719193842647,-152.76,0.00019282,2]
[330225500,1719193842657,-1011.47106326,0.00019306,2]
[330225501,1719193842666,-150.0,0.00019321,2]
[330225502,1719193842676,-399.31633648,0.00019423,2]
[330225503,1719193842685,-150.0,0.00019429,2]
[330225504,1719193842694,-150.0,0.00019436,2]
[330225505,1719193842703,-151.0,0.00019452,2]
[330225506,1719193842712,-150.0,0.00019465,2]
[330225507,1719193842722,-150.0,0.00019492,2]
[330225508,1719193842735,-150.0,0.00019497,2]
[330225509,1719193842744,-150.0,0.00019509,2]
[330225510,1719193842753,-166.0,0.0001951,2]
[330225511,1719193842762,-150.0,0.00019534,2]
[330225512,1719193842771,-1134.44,0.00019543,2]